fUST/lending_fUST_20250422
["ID","MTS","AMOUNT","RATE_DAILY","PERIOD"]
[358633551,1745322649776,-500.0,0.00022465,2]
[358633552,1745322649786,-500.0,0.00022465,2]
[358633553,1745322649796,-500.0,0.00022465,2]
[358633554,1745322649807,-539.74,0.00022465,2]
[358633555,1745322649956,-500.0,0.00022465,2]
[358633556,1745322649967,-180.49716584,0.00022465,2]
[358633557,1745322649977,-500.0,0.00022465,2]
[358633558,1745322649987,-500.0,0.00022465,2]
[358633559,1745322649998,-759.51,0.00022465,2]
[358633560,1745322650007,-500.0,0.00022465,2]
[358633561,1745322650018,-500.0,0.00022465,2]
[358633562,1745322650028,-500.0,0.00022465,2]
[358633563,1745322650038,-500.0,0.00022465,2]
[358633564,1745322650048,-479.68259139,0.00022465,2]
[358633565,1745322650758,-385.22300047,0.00021917,2]
[358633566,1745322650771,-114.77699953,0.00021917,2]
[358633567,1745322650781,-160.38955892,0.00021917,2]
[358633568,1745322650793,-309.8302344,0.00021917,2]
[358633603,1745323017647,125000.0,0.00025,120]
[358633697,1745323832282,-766.31884154,0.0002102,2]
[358633698,1745323832293,-740.5920688,0.0002112,2]
[358633699,1745323832303,-288.05475448,0.00021891,2]
[358633700,1745323832312,-5000.0,0.000219,7]
[358633701,1745323832322,-300.0,0.00021915,2]
[358633702,1745323832332,-3229.97420686,0.00021916,2]
[358633703,1745323832342,-500.0,0.00021916,2]
[358633704,1745323832351,-500.0,0.00021916,2]
[358633705,1745323832361,-500.0,0.00021916,2]
[358633706,1745323832371,-500.0,0.00021916,2]
[358633707,1745323832380,-500.0,0.00021916,2]
[358633708,1745323832390,-410.3940219,0.00021916,2]
[358633709,1745323832400,-500.0,0.00021916,2]
[358633710,1745323832409,-500.0,0.00021916,2]
[358633711,1745323832419,-500.0,0.00021916,2]
[358633712,1745323832430,-500.0,0.00021916,2]
[358633713,1745323832440,-500.0,0.00021916,2]
[358633714,1745323832450,-500.0,0.00021916,2]
[358633715,1745323832459,-500.0,0.00021916,2]
[358633716,1745323832470,-500.0,0.00021916,2]
[358633717,1745323832481,-397.08011628,0.00021916,2]
[358633718,1745323832490,-500.0,0.00021916,2]
[358633719,1745323832500,-500.0,0.00021916,2]
[358633720,1745323832510,-500.0,0.00021916,2]
[358633721,1745323832520,-575.75777399,0.00021917,2]
[358633722,1745323832531,-547.01769651,0.00021917,2]
[358633723,1745323832542,-502.2594155,0.00021917,2]
[358633724,1745323832552,-500.0,0.00021917,2]
[358633725,1745323832562,-500.0,0.00021917,2]
[358633726,1745323832572,-500.0,0.00021917,2]
[358633727,1745323832582,-500.0,0.00021917,2]
[358633728,1745323832593,-500.54663892,0.00021917,2]
[358633729,1745323832603,-500.0,0.00021917,2]
[358633730,1745323832614,-500.0,0.00021917,2]
[358633731,1745323832624,-574.25948825,0.00021917,2]
[358633732,1745323832634,-502.82191151,0.00021917,2]
[358633733,1745323832645,-500.0,0.00021917,2]
[358633734,1745323832655,-500.0,0.00021917,2]
[358633735,1745323832666,-500.0,0.00021917,2]
[358633736,1745323832679,-500.0,0.00021917,2]
[358633737,1745323832690,-500.0,0.00021917,2]
[358633738,1745323832701,-503.91690168,0.00021917,2]
[358633739,1745323832711,-500.0,0.00021917,2]
[358633740,1745323832727,-504.53398228,0.00021917,2]
[358633741,1745323832737,-500.0,0.00021917,2]
[358633742,1745323832746,-512.35601815,0.00021917,2]
[358633743,1745323832764,-503.65206564,0.00021917,2]
[358633744,1745323832774,-507.14471791,0.00021917,2]
[358633745,1745323832784,-502.68089018,0.00021917,2]
[358633746,1745323832794,-500.0,0.00021917,2]
[358633747,1745323832804,-500.0,0.00021917,2]
[358633748,1745323832815,-629.71255057,0.00021917,2]
[358633749,1745323832824,-500.0,0.00021917,2]
[358633750,1745323832836,-508.22097457,0.00021917,2]
[358633751,1745323832846,-500.0,0.00021917,2]
[358633752,1745323832856,-500.0,0.00021917,2]
[358633753,1745323832866,-752.05,0.00021917,2]
[358633754,1745323832875,-509.38929486,0.00021917,2]
[358633755,1745323832885,-399.85441223,0.00021917,2]
[358633756,1745323832895,-500.0,0.00021917,2]
[358633757,1745323832905,-161.47469625,0.00021917,2]
[358633758,1745323832915,-504.4368688,0.00021917,2]
[358633759,1745323832926,-504.59641593,0.00021917,2]
[358633760,1745323832936,-510.87734503,0.00021917,2]
[358633761,1745323832945,-500.0,0.00021917,2]
[358633762,1745323832955,-524.65146944,0.00021917,2]
[358633763,1745323832965,-500.0,0.00021917,2]
[358633764,1745323832978,-500.0,0.00021917,2]
[358633765,1745323832988,-500.0,0.00021917,2]
[358633766,1745323832999,-500.0,0.00021917,2]
[358633767,1745323833009,-504.48898215,0.00021917,2]
[358633768,1745323833019,-496.08129879,0.00021917,2]
[358633769,1745323833029,-500.0,0.00021917,2]
[358633770,1745323833039,-500.0,0.00021917,2]
[358633771,1745323833049,-500.0,0.00021917,2]
[358633772,1745323833060,-508.61607379,0.00021917,2]
[358633773,1745323833071,-500.0,0.00021917,2]
[358633774,1745323833082,-466.83377839,0.00021917,2]
[358633775,1745323833093,-770.95,0.00021917,2]
[358633776,1745323833104,-500.0,0.00021917,2]
[358633777,1745323833116,-500.0,0.00021917,2]
[358633778,1745323833126,-500.0,0.00021917,2]
[358633779,1745323833137,-500.0,0.00021917,2]
[358633780,1745323833149,-503.04762056,0.00021917,2]
[358633781,1745323833159,-500.0,0.00021917,2]
[358633782,1745323833170,-500.0,0.00021917,2]
[358633783,1745323833180,-528.54,0.00021917,2]
[358633784,1745323833192,-500.0,0.00021917,2]
[358633785,1745323833202,-500.0,0.00021917,2]
[358633786,1745323833212,-662.04,0.00021917,2]
[358633787,1745323833223,-500.0,0.00021917,2]
[358633788,1745323833233,-500.0,0.00021917,2]
[358633789,1745323833245,-500.0,0.00021917,2]
[358633790,1745323833255,-507.93497376,0.00021917,2]
[358633791,1745323833265,-500.0,0.00021917,2]
[358633792,1745323833277,-500.0,0.00021917,2]
[358633793,1745323833288,-500.0,0.00021917,2]
[358633794,1745323833298,-500.0,0.00021917,2]
[358633795,1745323833310,-500.0,0.00021917,2]
[358633796,1745323833320,-500.0,0.00021917,2]
[358633797,1745323833330,-511.99,0.00021917,2]
[358633798,1745323833341,-500.0,0.00021917,2]
[358633799,1745323833351,-582.12,0.00021917,2]
[358633800,1745323833361,-773.15,0.00021917,2]
[358633801,1745323833372,-500.0,0.00021917,2]
[358633802,1745323833383,-500.0,0.00021917,2]
[358633803,1745323833393,-500.0,0.00021917,2]
[358633804,1745323833402,-677.27,0.00021917,2]
[358633805,1745323833412,-500.0,0.00021917,2]
[358633806,1745323833422,-500.0,0.00021917,2]
[358633807,1745323833432,-500.0,0.00021917,2]
[358633808,1745323833443,-500.0,0.00021917,2]
[358633809,1745323833453,-500.0,0.00021917,2]
[358633810,1745323833464,-500.0,0.00021917,2]
[358633811,1745323833476,-500.0,0.00021917,2]
[358633812,1745323833486,-500.0,0.00021917,2]
[358633813,1745323833497,-500.0,0.00021917,2]
[358633814,1745323833507,-500.0,0.00021917,2]
[358633815,1745323833518,-500.0,0.00021917,2]
[358633816,1745323833528,-500.0,0.00021917,2]
[358633817,1745323833538,-500.0,0.00021917,2]
[358633818,1745323833548,-500.0,0.00021917,2]
[358633819,1745323833558,-654.94,0.00021917,2]
[358633820,1745323833568,-1059.62,0.00021917,2]
[358633821,1745323833578,-500.0,0.00021917,2]
[358633822,1745323833589,-500.0,0.00021917,2]
[358633823,1745323833599,-503.31382095,0.00021917,2]
[358633824,1745323833609,-500.0,0.00021917,2]
[358633825,1745323833620,-500.0,0.00021917,2]
[358633826,1745323833630,-500.0,0.00021917,2]
[358633827,1745323833641,-645.11,0.00021917,2]
[358633828,1745323833653,-500.0,0.00021917,2]
[358633829,1745323833663,-500.0,0.00021917,2]
[358633830,1745323833674,-500.0,0.00021917,2]
[358633831,1745323833688,-500.0,0.00021917,2]
[358633832,1745323833698,-500.0,0.00021917,2]
[358633833,1745323833708,-500.0,0.00021917,2]
[358633834,1745323833719,-500.0,0.00021917,2]
[358633835,1745323833730,-500.0,0.00021917,2]
[358633836,1745323833740,-500.0,0.00021917,2]
[358633837,1745323833751,-500.0,0.00021917,2]
[358633838,1745323833762,-500.0,0.00021917,2]
[358633839,1745323833772,-500.0,0.00021917,2]
[358633840,1745323833783,-542.56,0.00021917,2]
[358633841,1745323833793,-500.0,0.00021917,2]
[358633842,1745323833803,-500.0,0.00021917,2]
[358633843,1745323833814,-228.29434969,0.00021917,2]
[358633844,1745323833824,-569.68,0.00021917,2]
[358633845,1745323833834,-503.43826357,0.00021917,2]
[358633846,1745323833844,-1508.19,0.00021917,2]
[358633847,1745323833854,-503.55488466,0.00021917,2]
[358633848,1745323833864,-500.0,0.00021917,2]
[358633849,1745323833874,-500.0,0.00021917,2]
[358633850,1745323833884,-500.0,0.00021917,2]
[358633851,1745323833894,-500.0,0.00021917,2]
[358633852,1745323833904,-500.0,0.00021917,2]
[358633853,1745323833914,-500.0,0.00021917,2]
[358633854,1745323833924,-500.0,0.00021917,2]
[358633855,1745323833935,-500.0,0.00021917,2]
[358633856,1745323833944,-500.0,0.00021917,2]
[358633857,1745323833954,-500.0,0.00021917,2]
[358633858,1745323833964,-180.49716584,0.00021917,2]
[358633859,1745323833976,-500.0,0.00021917,2]
[358633860,1745323833986,-3232.48,0.00021917,2]
[358633861,1745323833996,-3374.24,0.00021917,2]
[358633862,1745323834006,-587.6,0.00021917,2]
[358633863,1745323834016,-260.82011822,0.00021917,2]
[358633864,1745323834026,-500.0,0.00021917,2]
[358633865,1745323834036,-503.35884048,0.00021917,2]
[358633866,1745323834046,-500.0,0.00021917,2]
[358633867,1745323834056,-500.0,0.00021917,2]
[358633868,1745323834066,-10335.51,0.00021917,2]
[358633869,1745323834076,-500.0,0.00021917,2]
[358633870,1745323834086,-500.0,0.00021917,2]
[358633871,1745323834096,-501.65125686,0.00021917,2]
[358633872,1745323834106,-505.54069586,0.00021917,2]
[358633873,1745323834117,-340.3013031,0.00021917,2]
[358633874,1745323834139,-159.6986969,0.00021917,2]
[358633875,1745323834149,-500.0,0.00021917,2]
[358633876,1745323834159,-500.0,0.00021917,2]
[358633877,1745323834170,-500.0,0.00021917,2]
[358633878,1745323834181,-500.0,0.00021917,2]
[358633879,1745323834191,-650.37,0.00021917,2]
[358633880,1745323834201,-500.0,0.00021917,2]
[358633881,1745323834211,-500.0,0.00021917,2]
[358633882,1745323834223,-500.0,0.00021917,2]
[358633883,1745323834234,-502.67088859,0.00021917,2]
[358633884,1745323834244,-500.0,0.00021917,2]
[358633885,1745323834255,-500.0,0.00021917,2]
[358633886,1745323834265,-500.0,0.00021917,2]
[358633887,1745323834276,-500.0,0.00021917,2]
[358633888,1745323834286,-149.1013412,0.00021917,2]
[358633889,1745323834299,-260.21962085,0.00021917,2]
[358633911,1745323838339,-90.67903795,0.00021917,2]
[358633913,1745323838349,-502.71449283,0.00021917,2]
[358633915,1745323838359,-115.04442799,0.00021917,2]
[358633917,1745323838371,-384.95557201,0.00021917,2]
[358633920,1745323838380,-428.67147724,0.00021917,2]
[358633922,1745323838392,-71.32852276,0.00021917,2]
[358633924,1745323838403,-500.0,0.00021917,2]
[358633926,1745323838413,-500.0,0.00021917,2]
[358633927,1745323838422,-500.0,0.00021917,2]
[358633929,1745323838432,-43.5062711,0.00021917,2]
[358633935,1745323838498,-416.351307,0.00021917,2]
[358633936,1745323838511,-268.0124219,0.00021917,2]
[358633937,1745323838520,-500.0,0.00021917,2]
[358633938,1745323838530,-500.0,0.00021917,2]
[358633939,1745323838539,-500.0,0.00021917,2]
[358633940,1745323838550,-732.21,0.00021917,2]
[358633941,1745323838559,-500.0,0.00021917,2]
[358633942,1745323838568,-500.0,0.00021917,2]
[358633943,1745323838578,-500.0,0.00021917,2]
[358633944,1745323838588,-500.0,0.00021917,2]
[358633945,1745323838598,-500.0,0.00021917,2]
[358633946,1745323838608,-500.0,0.00021917,2]
[358633947,1745323838617,-500.0,0.00021917,2]
[358633948,1745323838627,-500.0,0.00021917,2]
[358633949,1745323838637,-500.0,0.00021917,2]
[358633950,1745323838646,-500.0,0.00021917,2]
[358633951,1745323838656,-500.0,0.00021917,2]
[358633952,1745323838666,-500.0,0.00021917,2]
[358633953,1745323838676,-277.99723843,0.00021917,2]
[358633954,1745323838689,-500.0,0.00021917,2]
[358633955,1745323838699,-500.0,0.00021917,2]
[358633956,1745323838709,-501.65465623,0.00021917,2]
[358633957,1745323838719,-500.0,0.00021917,2]
[358633958,1745323838730,-500.0,0.00021917,2]
[358633959,1745323838740,-500.0,0.00021917,2]
[358633960,1745323838749,-500.0,0.00021917,2]
[358633961,1745323838760,-512.06,0.00021917,2]
[358633962,1745323838770,-500.0,0.00021917,2]
[358633963,1745323838780,-500.0,0.00021917,2]
[358633964,1745323838789,-500.0,0.00021917,2]
[358633965,1745323838799,-500.0,0.00021917,2]
[358633966,1745323838808,-501.69938003,0.00021917,2]
[358633967,1745323838819,-520.10718635,0.00021917,2]
[358633968,1745323838828,-3261.95,0.00021917,2]
[358633969,1745323838978,-500.0,0.00021917,2]
[358633970,1745323838989,-500.0,0.00021917,2]
[358633971,1745323838999,-5994.34,0.00021917,2]
[358633972,1745323839010,-500.0,0.00021917,2]
[358633973,1745323839020,-540.16,0.00021917,2]
[358633974,1745323839030,-500.0,0.00021917,2]
[358633975,1745323839040,-500.0,0.00021917,2]
[358633976,1745323839050,-500.0,0.00021917,2]
[358633977,1745323839060,-500.0,0.00021917,2]
[358633978,1745323839070,-500.0,0.00021917,2]
[358633979,1745323839080,-500.0,0.00021917,2]
[358633980,1745323839090,-624.6,0.00021917,2]
[358633981,1745323839101,-500.0,0.00021917,2]
[358633982,1745323839111,-500.0,0.00021917,2]
[358633983,1745323839121,-1744.07,0.00021917,2]
[358633984,1745323839131,-500.0,0.00021917,2]
[358633985,1745323839141,-500.0,0.00021917,2]
[358633986,1745323839150,-500.0,0.00021917,2]
[358633987,1745323839160,-500.0,0.00021917,2]
[358633988,1745323839171,-500.0,0.00021917,2]
[358633989,1745323839181,-500.0,0.00021917,2]
[358633990,1745323839191,-513.56409681,0.00021917,2]
[358633991,1745323839202,-500.0,0.00021917,2]
[358633992,1745323839211,-500.0,0.00021917,2]
[358633993,1745323839221,-500.0,0.00021917,2]
[358633994,1745323839233,-500.0,0.00021917,2]
[358633995,1745323839243,-500.0,0.00021917,2]
[358633996,1745323839252,-500.0,0.00021917,2]
[358633997,1745323839262,-606.47,0.00021917,2]
[358633998,1745323839272,-500.47103987,0.00021917,2]
[358633999,1745323839282,-500.0,0.00021917,2]
[358634000,1745323839291,-500.0,0.00021917,2]
[358634001,1745323839301,-500.0,0.00021917,2]
[358634002,1745323839311,-1928.53,0.00021917,2]
[358634003,1745323839321,-500.0,0.00021917,2]
[358634004,1745323839330,-776.25,0.00021917,2]
[358634005,1745323839340,-678.13,0.00021917,2]
[358634006,1745323839350,-500.0,0.00021917,2]
[358634007,1745323839359,-500.0,0.00021917,2]
[358634008,1745323839369,-500.0,0.00021917,2]
[358634009,1745323839379,-506.26261494,0.00021917,2]
[358634010,1745323839388,-500.0,0.00021917,2]
[358634011,1745323839398,-500.0,0.00021917,2]
[358634012,1745323839408,-500.0,0.00021917,2]
[358634013,1745323839418,-1774.09,0.00021917,2]
[358634014,1745323839428,-500.0,0.00021917,2]
[358634015,1745323839438,-500.0,0.00021917,2]
[358634016,1745323839448,-606.79,0.00021917,2]
[358634017,1745323839458,-500.0,0.00021917,2]
[358634018,1745323839467,-500.0,0.00021917,2]
[358634019,1745323839479,-494.82033752,0.00021917,2]
[358634020,1745323839488,-568.27800806,0.00021917,2]
[358634021,1745323839498,-501.88088184,0.00021917,2]
[358634022,1745323839508,-500.0,0.00021917,2]
[358634023,1745323839518,-500.0,0.00021917,2]
[358634024,1745323839528,-1149.8,0.00021917,2]
[358634025,1745323839538,-500.0,0.00021917,2]
[358634026,1745323839548,-500.0,0.00021917,2]
[358634027,1745323839557,-500.0,0.00021917,2]
[358634028,1745323839567,-500.0,0.00021917,2]
[358634029,1745323839577,-500.0,0.00021917,2]
[358634030,1745323839587,-515.51396382,0.00021917,2]
[358634031,1745323839597,-506.66075598,0.00021917,2]
[358634032,1745323839607,-500.0,0.00021917,2]
[358634033,1745323839616,-519.34569193,0.00021917,2]
[358634034,1745323839626,-500.0,0.00021917,2]
[358634035,1745323839636,-500.0,0.00021917,2]
[358634036,1745323839646,-539.06370772,0.00021917,2]
[358634037,1745323839655,-500.0,0.00021917,2]
[358634038,1745323839665,-722.43,0.00021917,2]
[358634039,1745323839675,-500.0,0.00021917,2]
[358634040,1745323839687,-500.0,0.00021917,2]
[358634041,1745323839697,-3258.55,0.00021917,2]
[358634042,1745323839706,-500.0,0.00021917,2]
[358634043,1745323839716,-500.0,0.00021917,2]
[358634044,1745323839727,-3233.65,0.00021917,2]
[358634045,1745323839736,-166.0,0.00021918,2]
[358634046,1745323839747,-180.315553,0.00021918,2]
[358634047,1745323839759,-500.0,0.00021918,2]
[358634048,1745323839768,-151.0,0.00021918,2]
[358634049,1745323839778,-225.71875844,0.00021918,2]
[358634050,1745323839787,-260.12531393,0.00021918,2]
[358634051,1745323839797,-151.0,0.00021918,2]
[358634052,1745323839806,-151.0,0.00021918,2]
[358634053,1745323839816,-151.0,0.00021918,2]
[358634054,1745323839826,-500.0,0.00021918,2]
[358634055,1745323839837,-151.0,0.00021918,2]
[358634056,1745323839848,-500.0,0.00021918,2]
[358634057,1745323839859,-500.0,0.00021998,2]
[358634058,1745323839868,-1000.0,0.00022,2]
[358634059,1745323839878,-9702.0,0.00022,2]
[358634060,1745323839888,-1168.14688451,0.00022091,2]
[358634061,1745323839898,-288.05475448,0.00022103,2]
[358634062,1745323839908,-500.0,0.0002218,2]
[358634063,1745323839918,-169.87146534,0.0002219,2]
[358634064,1745323839928,-173.9981589,0.0002219,2]
[358634065,1745323839939,-323.42725253,0.0002219,2]
[358634066,1745323839950,-500.0,0.00022191,2]
[358634067,1745323839960,-500.0,0.00022191,2]
[358634068,1745323839971,-500.0,0.00022191,2]
[358634069,1745323839984,-500.0,0.00022191,2]
[358634070,1745323839994,-500.0,0.00022191,2]
[358634071,1745323840005,-500.0,0.00022191,2]
[358634072,1745323840015,-500.0,0.00022191,2]
[358634074,1745323840025,-500.0,0.00022191,2]
[358634075,1745323840034,-500.0,0.00022191,2]
[358634076,1745323840044,-500.0,0.00022191,2]
[358634077,1745323840054,-500.0,0.00022191,2]
[358634078,1745323840064,-500.0,0.00022191,2]
[358634079,1745323840073,-500.0,0.00022191,2]
[358634080,1745323840083,-752.05,0.00022191,2]
[358634081,1745323840093,-500.0,0.00022191,2]
[358634082,1745323840103,-500.0,0.00022191,2]
[358634083,1745323840112,-516.49854394,0.00022191,2]
[358634084,1745323840122,-500.0,0.00022191,2]
[358634085,1745323840133,-509.31683203,0.00022191,2]
[358634086,1745323840143,-500.0,0.00022191,2]
[358634087,1745323840152,-500.0,0.00022191,2]
[358634088,1745323840162,-254.94146799,0.00022191,2]
[358634089,1745323840172,-500.0,0.00022191,2]
[358634090,1745323840182,-770.95,0.00022191,2]
[358634091,1745323840191,-500.0,0.00022191,2]
[358634092,1745323840201,-500.0,0.00022191,2]
[358634093,1745323840211,-500.0,0.00022191,2]
[358634094,1745323840220,-500.0,0.00022191,2]
[358634095,1745323840231,-304.20680205,0.00022191,2]
[358634096,1745323840241,-500.0,0.00022191,2]
[358634097,1745323840250,-500.0,0.00022191,2]
[358634098,1745323840260,-662.04,0.00022191,2]
[358634099,1745323840269,-500.0,0.00022191,2]
[358634100,1745323840279,-500.0,0.00022191,2]
[358634102,1745323840289,-500.0,0.00022191,2]
[358634103,1745323840300,-500.0,0.00022191,2]
[358634104,1745323840310,-500.0,0.00022191,2]
[358634105,1745323840320,-500.0,0.00022191,2]
[358634106,1745323840330,-500.0,0.00022191,2]
[358634107,1745323840339,-511.99,0.00022191,2]
[358634108,1745323840349,-500.0,0.00022191,2]
[358634109,1745323840358,-582.12,0.00022191,2]
[358634110,1745323840368,-773.15,0.00022191,2]
[358634111,1745323840377,-500.0,0.00022191,2]
[358634112,1745323840386,-500.0,0.00022191,2]
[358634113,1745323840396,-500.0,0.00022191,2]
[358634114,1745323840406,-677.27,0.00022191,2]
[358634115,1745323840415,-500.0,0.00022191,2]
[358634116,1745323840425,-444.06608682,0.00022191,2]
[358634117,1745323840434,-500.0,0.00022191,2]
[358634118,1745323840444,-500.0,0.00022191,2]
[358634119,1745323840454,-500.0,0.00022191,2]
[358634120,1745323840464,-500.0,0.00022191,2]
[358634121,1745323840474,-243.28,0.00022191,2]
[358634122,1745323840486,-500.0,0.00022191,2]
[358634123,1745323840495,-500.0,0.00022191,2]
[358634124,1745323840504,-654.94,0.00022191,2]
[358634125,1745323840514,-1059.62,0.00022191,2]
[358634126,1745323840523,-500.0,0.00022191,2]
[358634127,1745323840533,-500.0,0.00022191,2]
[358634128,1745323840542,-500.0,0.00022191,2]
[358634129,1745323840551,-645.11,0.00022191,2]
[358634130,1745323840560,-500.0,0.00022191,2]
[358634131,1745323840570,-500.0,0.00022191,2]
[358634132,1745323840580,-500.0,0.00022191,2]
[358634133,1745323840590,-500.0,0.00022191,2]
[358634134,1745323840600,-500.0,0.00022191,2]
[358634135,1745323840609,-500.0,0.00022191,2]
[358634136,1745323840619,-500.0,0.00022191,2]
[358634137,1745323840628,-500.0,0.00022191,2]
[358634138,1745323840637,-542.56,0.00022191,2]
[358634139,1745323840646,-569.68,0.00022191,2]
[358634140,1745323840656,-1508.19,0.00022191,2]
[358634141,1745323840666,-500.0,0.00022191,2]
[358634143,1745323840676,-500.0,0.00022191,2]
[358634144,1745323840687,-500.0,0.00022191,2]
[358634145,1745323840697,-505.84,0.00022191,2]
[358634146,1745323840706,-500.0,0.00022191,2]
[358634147,1745323840716,-500.0,0.00022191,2]
[358634148,1745323840727,-500.0,0.00022191,2]
[358634149,1745323840736,-500.0,0.00022191,2]
[358634150,1745323840746,-587.6,0.00022191,2]
[358634151,1745323840757,-500.0,0.00022191,2]
[358634152,1745323840767,-500.0,0.00022191,2]
[358634153,1745323840776,-500.0,0.00022191,2]
[358634154,1745323840786,-10335.51,0.00022191,2]
[358634155,1745323840795,-500.0,0.00022191,2]
[358634156,1745323840806,-500.0,0.00022191,2]
[358634157,1745323840815,-500.0,0.00022191,2]
[358634158,1745323840826,-500.0,0.00022191,2]
[358634159,1745323840835,-500.0,0.00022191,2]
[358634160,1745323840845,-500.0,0.00022191,2]
[358634161,1745323840855,-500.0,0.00022191,2]
[358634162,1745323840864,-650.37,0.00022191,2]
[358634163,1745323840873,-500.0,0.00022191,2]
[358634164,1745323840883,-500.0,0.00022191,2]
[358634165,1745323840893,-500.0,0.00022191,2]
[358634166,1745323840903,-500.0,0.00022191,2]
[358634167,1745323840914,-500.0,0.00022191,2]
[358634168,1745323840923,-500.0,0.00022191,2]
[358634169,1745323840932,-500.0,0.00022191,2]
[358634170,1745323840942,-500.0,0.00022191,2]
[358634171,1745323840952,-500.0,0.00022191,2]
[358634172,1745323840962,-727.87,0.00022191,2]
[358634173,1745323840972,-500.0,0.00022191,2]
[358634174,1745323840982,-732.21,0.00022191,2]
[358634175,1745323840992,-500.0,0.00022191,2]
[358634176,1745323841001,-500.0,0.00022191,2]
[358634177,1745323841010,-500.0,0.00022191,2]
[358634178,1745323841020,-500.0,0.00022191,2]
[358634179,1745323841029,-500.0,0.00022191,2]
[358634180,1745323841039,-500.0,0.00022191,2]
[358634181,1745323841048,-500.0,0.00022191,2]
[358634182,1745323841057,-500.0,0.00022191,2]
[358634183,1745323841067,-500.0,0.00022191,2]
[358634184,1745323841077,-500.0,0.00022191,2]
[358634185,1745323841086,-500.0,0.00022191,2]
[358634186,1745323841096,-500.0,0.00022191,2]
[358634187,1745323841105,-500.0,0.00022191,2]
[358634188,1745323841115,-528.45935928,0.00022191,2]
[358634189,1745323841125,-512.06,0.00022191,2]
[358634190,1745323841135,-500.0,0.00022191,2]
[358634191,1745323841146,-3261.95,0.00022191,2]
[358634192,1745323841156,-500.0,0.00022191,2]
[358634193,1745323841166,-5994.34,0.00022191,2]
[358634194,1745323841175,-500.0,0.00022191,2]
[358634195,1745323841184,-540.16,0.00022191,2]
[358634196,1745323841194,-500.0,0.00022191,2]
[358634197,1745323841203,-500.0,0.00022191,2]
[358634198,1745323841213,-500.0,0.00022191,2]
[358634199,1745323841222,-500.0,0.00022191,2]
[358634200,1745323841232,-500.0,0.00022191,2]
[358634201,1745323841242,-624.6,0.00022191,2]
[358634202,1745323841251,-500.0,0.00022191,2]
[358634203,1745323841260,-1744.07,0.00022191,2]
[358634204,1745323841270,-505.82877217,0.00022191,2]
[358634205,1745323841280,-500.0,0.00022191,2]
[358634206,1745323841290,-500.0,0.00022191,2]
[358634207,1745323841299,-501.31819858,0.00022191,2]
[358634208,1745323841309,-500.0,0.00022191,2]
[358634209,1745323841320,-500.0,0.00022191,2]
[358634210,1745323841331,-515.49691352,0.00022191,2]
[358634211,1745323841340,-500.0,0.00022191,2]
[358634212,1745323841349,-500.0,0.00022191,2]
[358634213,1745323841359,-606.47,0.00022191,2]
[358634214,1745323841369,-500.0,0.00022191,2]
[358634215,1745323841379,-1928.53,0.00022191,2]